[Event "*** Titled Tuesday Blitz"]
[Site "Chess.com"]
[Date "2020.04.28"]
[Round "1"]
[White "almaguerjm"]
[Black "Revnov"]
[Result "1/2-1/2"]
[WhiteElo "2359"]
[BlackElo "2679"]
[TimeControl "180+1"]
[EndTime "10:08:54 PDT"]
[Termination "Game drawn by repetition"]

1. d4 {[%clk 0:02:58.9]} 1... e6 {[%clk 0:02:59.4]} 2. Bf4 {[%clk 0:02:57.5]}
2... d5 {[%clk 0:02:58.3]} 3. Qd2 {[%clk 0:02:54.3]} 3... Bd6 {[%clk 0:02:58.5]}
4. Nc3 {[%clk 0:02:53.6]} 4... Nf6 {[%clk 0:02:57.1]} 5. f3 {[%clk 0:02:53.3]}
5... Nbd7 {[%clk 0:02:52.1]} 6. Bxd6 {[%clk 0:02:47.9]} 6... cxd6 {[%clk
0:02:51.6]} 7. e3 {[%clk 0:02:44.3]} 7... a6 {[%clk 0:02:47.6]} 8. g4 {[%clk
0:02:37]} 8... b5 {[%clk 0:02:46]} 9. Bd3 {[%clk 0:02:30.5]} 9... Bb7 {[%clk
0:02:44.8]} 10. Nge2 {[%clk 0:02:26.9]} 10... Nb6 {[%clk 0:02:43.2]} 11. g5
{[%clk 0:02:11.7]} 11... Nh5 {[%clk 0:02:36.7]} 12. h4 {[%clk 0:02:08.1]} 12...
Rc8 {[%clk 0:02:35.4]} 13. b3 {[%clk 0:02:05.3]} 13... g6 {[%clk 0:02:34.9]} 14.
Nd1 {[%clk 0:02:02.1]} 14... e5 {[%clk 0:02:29.7]} 15. Nf2 {[%clk 0:02:01.7]}
15... O-O {[%clk 0:02:27.7]} 16. O-O {[%clk 0:01:58.6]} 16... h6 {[%clk
0:02:14]} 17. dxe5 {[%clk 0:01:36.9]} 17... dxe5 {[%clk 0:02:09.6]} 18. e4
{[%clk 0:01:36.8]} 18... hxg5 {[%clk 0:01:53.4]} 19. hxg5 {[%clk 0:01:32.9]}
19... Kg7 {[%clk 0:01:52.2]} 20. Ng4 {[%clk 0:01:25.3]} 20... Qe7 {[%clk
0:01:45.7]} 21. Kg2 {[%clk 0:01:15.4]} 21... Rcd8 {[%clk 0:01:37.5]} 22. Rh1
{[%clk 0:01:09.3]} 22... dxe4 {[%clk 0:01:32.5]} 23. Rxh5 {[%clk 0:00:59.9]}
23... gxh5 {[%clk 0:01:26.2]} 24. Nf6 {[%clk 0:00:56.5]} 24... exd3 {[%clk
0:01:13]} 25. Ng3 {[%clk 0:00:55.2]} 25... Rh8 {[%clk 0:00:59.9]} 26. Nf5+
{[%clk 0:00:52.7]} 26... Kf8 {[%clk 0:01:00.5]} 27. Nxe7 {[%clk 0:00:52.9]}
27... Kxe7 {[%clk 0:00:59.9]} 28. Qe3 {[%clk 0:00:48.3]} 28... Nd7 {[%clk
0:00:45.6]} 29. cxd3 {[%clk 0:00:45.4]} 29... Ke6 {[%clk 0:00:37]} 30. Ne4
{[%clk 0:00:38.8]} 30... Rc8 {[%clk 0:00:32.4]} 31. Rc1 {[%clk 0:00:38.1]} 31...
Rxc1 {[%clk 0:00:30.1]} 32. Qxc1 {[%clk 0:00:39]} 32... Rc8 {[%clk 0:00:30.1]}
33. Qa3 {[%clk 0:00:37.2]} 33... Rc6 {[%clk 0:00:27.8]} 34. b4 {[%clk
0:00:35.8]} 34... Rc2+ {[%clk 0:00:25.6]} 35. Kg3 {[%clk 0:00:35.7]} 35... Rc8
{[%clk 0:00:18.2]} 36. Qb3+ {[%clk 0:00:32]} 36... Bd5 {[%clk 0:00:18.3]} 37.
Qb2 {[%clk 0:00:32.1]} 37... Rc6 {[%clk 0:00:17.8]} 38. a3 {[%clk 0:00:30.8]}
38... f5 {[%clk 0:00:17.7]} 39. gxf6 {[%clk 0:00:30.5]} 39... Bxe4 {[%clk
0:00:17.3]} 40. dxe4 {[%clk 0:00:24.6]} 40... Nxf6 {[%clk 0:00:18.2]} 41. Qb3+
{[%clk 0:00:22.2]} 41... Rc4 {[%clk 0:00:18.7]} 42. Qd3 {[%clk 0:00:18.9]} 42...
Ke7 {[%clk 0:00:17.7]} 43. Qe3 {[%clk 0:00:18.4]} 43... Rd4 {[%clk 0:00:16.9]}
44. Qh6 {[%clk 0:00:17.6]} 44... Ke6 {[%clk 0:00:16.7]} 45. Qf8 {[%clk
0:00:17.4]} 45... Rd6 {[%clk 0:00:16]} 46. Qc8+ {[%clk 0:00:17.1]} 46... Ke7
{[%clk 0:00:15.7]} 47. Qc5 {[%clk 0:00:17.1]} 47... Ke6 {[%clk 0:00:15.6]} 48.
Kh4 {[%clk 0:00:17.3]} 48... Ke7 {[%clk 0:00:15.2]} 49. Kg5 {[%clk 0:00:17.3]}
49... Nd7 {[%clk 0:00:14.7]} 50. Qc7 {[%clk 0:00:16.4]} 50... Re6 {[%clk
0:00:14.1]} 51. Kf5 {[%clk 0:00:16.5]} 51... Rf6+ {[%clk 0:00:13.8]} 52. Kg5
{[%clk 0:00:16.8]} 52... Re6 {[%clk 0:00:14.7]} 53. Kxh5 {[%clk 0:00:16.4]}
53... Rf6 {[%clk 0:00:14.8]} 54. Kg4 {[%clk 0:00:16.9]} 54... Re6 {[%clk
0:00:15.7]} 55. Kg3 {[%clk 0:00:17.3]} 55... Rg6+ {[%clk 0:00:15.6]} 56. Kf2
{[%clk 0:00:17.7]} 56... Rd6 {[%clk 0:00:16.5]} 57. Ke3 {[%clk 0:00:17.3]} 57...
Rf6 {[%clk 0:00:17]} 58. Qc8 {[%clk 0:00:15.9]} 58... Re6 {[%clk 0:00:17.3]} 59.
Qg8 {[%clk 0:00:15.8]} 59... Rf6 {[%clk 0:00:17.7]} 60. Qg7+ {[%clk 0:00:16.2]}
60... Ke6 {[%clk 0:00:17.9]} 61. Qg4+ {[%clk 0:00:16.3]} 61... Ke7 {[%clk
0:00:18.1]} 62. Qg5 {[%clk 0:00:16.4]} 62... Ke6 {[%clk 0:00:18.3]} 63. Qg8+
{[%clk 0:00:15.7]} 63... Ke7 {[%clk 0:00:18.6]} 64. Qa8 {[%clk 0:00:16.3]} 64...
Rd6 {[%clk 0:00:18.8]} 65. f4 {[%clk 0:00:16.3]} 65... exf4+ {[%clk 0:00:18.7]}
66. Kxf4 {[%clk 0:00:17.2]} 66... Rf6+ {[%clk 0:00:19.1]} 67. Ke3 {[%clk
0:00:17.1]} 67... Re6 {[%clk 0:00:19.5]} 68. Qb7 {[%clk 0:00:17.1]} 68... Rb6
{[%clk 0:00:19]} 69. Qc7 {[%clk 0:00:16.8]} 69... Re6 {[%clk 0:00:19.3]} 70. Kd4
{[%clk 0:00:16.6]} 70... Rd6+ {[%clk 0:00:19.5]} 71. Ke3 {[%clk 0:00:16.9]}
71... Re6 {[%clk 0:00:20]} 72. Qc3 {[%clk 0:00:15.2]} 72... Rc6 {[%clk
0:00:19.6]} 73. Qg7+ {[%clk 0:00:15.3]} 73... Ke8 {[%clk 0:00:18.7]} 74. e5
{[%clk 0:00:15.8]} 74... Re6 {[%clk 0:00:17.5]} 75. Qg8+ {[%clk 0:00:16.3]}
75... Ke7 {[%clk 0:00:17.5]} 76. Qh7+ {[%clk 0:00:16.1]} 76... Ke8 {[%clk
0:00:17]} 77. Qh8+ {[%clk 0:00:16.4]} 77... Ke7 {[%clk 0:00:17.4]} 78. Kd4
{[%clk 0:00:16.6]} 78... Rxe5 {[%clk 0:00:16.4]} 79. Qxe5+ {[%clk 0:00:16.8]}
79... Nxe5 {[%clk 0:00:17.3]} 80. Kxe5 {[%clk 0:00:17.7]} 80... Kd7 {[%clk
0:00:16.9]} 81. Kd5 {[%clk 0:00:18.2]} 81... Kc7 {[%clk 0:00:17.2]} 82. Kc5
{[%clk 0:00:17.7]} 82... Kb7 {[%clk 0:00:17.3]} 83. Kd6 {[%clk 0:00:18.2]} 83...
Kb6 {[%clk 0:00:18.2]} 84. Kd7 {[%clk 0:00:17.7]} 84... Kb7 {[%clk 0:00:18]} 85.
Kd6 {[%clk 0:00:16.7]} 85... Kb6 {[%clk 0:00:18.3]} 86. Kd5 {[%clk 0:00:17.3]}
86... Kb7 {[%clk 0:00:17.5]} 87. Kc5 {[%clk 0:00:17.4]} 87... Kc7 {[%clk
0:00:17.4]} 88. Kd5 {[%clk 0:00:18]} 88... Kd7 {[%clk 0:00:17.4]} 89. Kc5 {[%clk
0:00:18.6]} 89... Kc7 {[%clk 0:00:17.6]} 90. Kd5 {[%clk 0:00:19.1]} 90... Kd7
{[%clk 0:00:17.8]} 91. Kc5 {[%clk 0:00:19.5]} 91... Kc7 {[%clk 0:00:18.1]}
1/2-1/2

[Event "*** Titled Tuesday Blitz"]
[Site "Chess.com"]
[Date "2020.04.28"]
[Round "1"]
[White "AvitalBor"]
[Black "BasilSmash"]
[Result "1-0"]
[WhiteElo "2831"]
[BlackElo "2431"]
[TimeControl "180+1"]
[EndTime "10:09:08 PDT"]
[Termination "AvitalBor won on time"]

1. e4 {[%clk 0:03:00.9]} 1... c6 {[%clk 0:02:58.4]} 2. d4 {[%clk 0:03:00.1]}
2... d5 {[%clk 0:02:59.3]} 3. e5 {[%clk 0:03:00.6]} 3... Bf5 {[%clk 0:02:58.8]}
4. Be2 {[%clk 0:03:01.2]} 4... e6 {[%clk 0:02:57.2]} 5. Nf3 {[%clk 0:03:00.8]}
5... Ne7 {[%clk 0:02:56.3]} 6. O-O {[%clk 0:03:01.3]} 6... Ng6 {[%clk
0:02:55.9]} 7. Re1 {[%clk 0:03:00.2]} 7... Nd7 {[%clk 0:02:53.2]} 8. Nbd2 {[%clk
0:02:59.5]} 8... f6 {[%clk 0:02:51.8]} 9. exf6 {[%clk 0:02:56.5]} 9... Qxf6
{[%clk 0:02:52.6]} 10. Nf1 {[%clk 0:02:55]} 10... Bd6 {[%clk 0:02:51.6]} 11. Bg5
{[%clk 0:02:53.9]} 11... Qf7 {[%clk 0:02:50.8]} 12. Ng3 {[%clk 0:02:53.6]} 12...
O-O {[%clk 0:02:41.9]} 13. Qd2 {[%clk 0:02:46.9]} 13... Rae8 {[%clk 0:02:37.7]}
14. Be3 {[%clk 0:02:34]} 14... h6 {[%clk 0:02:14.2]} 15. c4 {[%clk 0:02:33]}
15... a6 {[%clk 0:02:07.7]} 16. Rac1 {[%clk 0:02:32.2]} 16... Nf6 {[%clk
0:01:57.3]} 17. cxd5 {[%clk 0:02:27.5]} 17... Nxd5 {[%clk 0:01:53.1]} 18. Ne5
{[%clk 0:02:13.1]} 18... Nxe5 {[%clk 0:01:40.1]} 19. dxe5 {[%clk 0:02:14]} 19...
Bxe5 {[%clk 0:01:40.2]} 20. Bh5 {[%clk 0:01:23.9]} 20... Bg6 {[%clk 0:01:16.6]}
21. Bxg6 {[%clk 0:01:23.9]} 21... Qxg6 {[%clk 0:01:17.4]} 22. Rc4 {[%clk
0:01:24.5]} 22... Rd8 {[%clk 0:01:00.8]} 23. Qe2 {[%clk 0:01:24.5]} 23... Nxe3
{[%clk 0:00:43.1]} 24. Qxe3 {[%clk 0:01:25.4]} 24... Bxg3 {[%clk 0:00:42.5]} 25.
hxg3 {[%clk 0:01:24.9]} 25... Rd6 {[%clk 0:00:35.8]} 26. Re4 {[%clk 0:01:09.9]}
26... Rf6 {[%clk 0:00:27.6]} 27. a4 {[%clk 0:01:09.8]} 27... Qf5 {[%clk
0:00:22.8]} 28. Re5 {[%clk 0:01:09.7]} 28... Qc2 {[%clk 0:00:19.3]} 29. Re2
{[%clk 0:00:55.3]} 29... Rd1+ {[%clk 0:00:15.4]} 30. Kh2 {[%clk 0:00:53]} 30...
Qb1 {[%clk 0:00:14.6]} 31. g4 {[%clk 0:00:53.1]} 31... Rh1+ {[%clk 0:00:14.3]}
32. Kg3 {[%clk 0:00:52.9]} 32... Qg6 {[%clk 0:00:13.2]} 33. Rxe6 {[%clk
0:00:42.7]} 33... Rxe6 {[%clk 0:00:12.1]} 34. Qxe6+ {[%clk 0:00:42.8]} 34...
Qxe6 {[%clk 0:00:11.2]} 35. Rxe6 {[%clk 0:00:43.7]} 35... Rb1 {[%clk 0:00:10.8]}
36. Re2 {[%clk 0:00:43.8]} 36... Kf7 {[%clk 0:00:10.6]} 37. Kf4 {[%clk
0:00:43.8]} 37... Ra1 {[%clk 0:00:10.2]} 38. Re4 {[%clk 0:00:44.1]} 38... Kf6
{[%clk 0:00:07.5]} 39. Rb4 {[%clk 0:00:41.6]} 39... b5 {[%clk 0:00:07.4]} 40.
axb5 {[%clk 0:00:41.8]} 40... axb5 {[%clk 0:00:06.4]} 41. Rb3 {[%clk 0:00:42.1]}
41... Ra4+ {[%clk 0:00:04.5]} 42. Kg3 {[%clk 0:00:42.5]} 42... Rc4 {[%clk
0:00:04.8]} 43. Rd3 {[%clk 0:00:41.7]} 43... Rc2 {[%clk 0:00:04.6]} 44. b3
{[%clk 0:00:41.8]} 44... c5 {[%clk 0:00:04.5]} 45. Rd6+ {[%clk 0:00:38]} 45...
Ke5 {[%clk 0:00:04.3]} 46. Rg6 {[%clk 0:00:37.7]} 46... b4 {[%clk 0:00:04.1]}
47. f4+ {[%clk 0:00:37.4]} 47... Kd4 {[%clk 0:00:03.8]} 48. Rxg7 {[%clk
0:00:37.2]} 48... Rc3+ {[%clk 0:00:03.8]} 49. Kh4 {[%clk 0:00:37.4]} 49... Rxb3
{[%clk 0:00:04.7]} 50. f5 {[%clk 0:00:37.8]} 50... c4 {[%clk 0:00:04.9]} 51. f6
{[%clk 0:00:38.1]} 51... Rb1 {[%clk 0:00:05]} 52. Rd7+ {[%clk 0:00:37.1]} 52...
Kc3 {[%clk 0:00:04.8]} 53. Kh5 {[%clk 0:00:32.9]} 53... Rf1 {[%clk 0:00:04.2]}
54. f7 {[%clk 0:00:28.4]} 54... b3 {[%clk 0:00:04]} 55. Kxh6 {[%clk 0:00:27.7]}
55... b2 {[%clk 0:00:04]} 56. Rb7 {[%clk 0:00:23.7]} 56... Rxf7 {[%clk
0:00:03.1]} 57. Rxf7 {[%clk 0:00:24.1]} 57... b1=Q {[%clk 0:00:03.5]} 58. g5
{[%clk 0:00:24.4]} 58... Qh1+ {[%clk 0:00:03]} 59. Kg7 {[%clk 0:00:24.7]} 59...
Qxg2 {[%clk 0:00:03.1]} 60. g6 {[%clk 0:00:25.3]} 60... Qg5 {[%clk 0:00:02.6]}
61. Kh7 {[%clk 0:00:25.2]} 61... Qh5+ {[%clk 0:00:02.6]} 62. Kg7 {[%clk
0:00:25.3]} 62... Kd3 {[%clk 0:00:03.5]} 63. Rf6 {[%clk 0:00:25.8]} 63... c3
{[%clk 0:00:03.6]} 64. Kf8 {[%clk 0:00:25.5]} 64... Qg5 {[%clk 0:00:03.2]} 65.
Rd6+ {[%clk 0:00:24.9]} 65... Ke4 {[%clk 0:00:03.5]} 66. g7 {[%clk 0:00:25.1]}
66... Qf4+ {[%clk 0:00:02.4]} 67. Ke7 {[%clk 0:00:24.7]} 67... Qg5+ {[%clk
0:00:02.4]} 68. Kf7 {[%clk 0:00:24.8]} 68... Qf5+ {[%clk 0:00:02.3]} 69. Rf6
{[%clk 0:00:25]} 69... Qe6+ {[%clk 0:00:02.4]} 70. Rxe6+ {[%clk 0:00:24.8]}
70... Kd3 {[%clk 0:00:03.3]} 71. Rc6 {[%clk 0:00:24.8]} 71... c2 {[%clk
0:00:04.2]} 72. g8=Q {[%clk 0:00:24.5]} 1-0

[Event "*** Titled Tuesday Blitz"]
[Site "Chess.com"]
[Date "2020.04.28"]
[Round "1"]
[White "kosmeg"]
[Black "Kobalia"]
[Result "1/2-1/2"]
[WhiteElo "2388"]
[BlackElo "2710"]
[TimeControl "180+1"]
[EndTime "10:09:09 PDT"]
[Termination "Game drawn by repetition"]

1. d4 {[%clk 0:02:56.1]} 1... d5 {[%clk 0:02:59.9]} 2. c4 {[%clk 0:02:56]} 2...
e6 {[%clk 0:02:59.7]} 3. Nf3 {[%clk 0:02:56.4]} 3... a6 {[%clk 0:02:57.7]} 4.
Nbd2 {[%clk 0:02:54.3]} 4... Nf6 {[%clk 0:02:56.6]} 5. g3 {[%clk 0:02:51.9]}
5... c5 {[%clk 0:02:51]} 6. Bg2 {[%clk 0:02:38.8]} 6... cxd4 {[%clk 0:02:49.2]}
7. O-O {[%clk 0:02:36.3]} 7... Nc6 {[%clk 0:02:47.9]} 8. cxd5 {[%clk 0:02:34.1]}
8... Nxd5 {[%clk 0:02:44.6]} 9. Nb3 {[%clk 0:02:31.4]} 9... e5 {[%clk
0:02:40.3]} 10. Nxe5 {[%clk 0:02:31.3]} 10... Nxe5 {[%clk 0:02:25.5]} 11. Qxd4
{[%clk 0:02:30.6]} 11... Nc6 {[%clk 0:02:08.5]} 12. Qxd5 {[%clk 0:02:28.9]}
12... Be6 {[%clk 0:02:08.6]} 13. Qxd8+ {[%clk 0:02:10.4]} 13... Rxd8 {[%clk
0:02:07.8]} 14. Be3 {[%clk 0:02:00]} 14... Be7 {[%clk 0:01:52.5]} 15. Nc5 {[%clk
0:01:56.3]} 15... Bxc5 {[%clk 0:01:52.5]} 16. Bxc5 {[%clk 0:01:57.2]} 16... f6
{[%clk 0:01:53.1]} 17. Rfd1 {[%clk 0:01:44.6]} 17... Rxd1+ {[%clk 0:01:47]} 18.
Rxd1 {[%clk 0:01:44]} 18... Bxa2 {[%clk 0:01:47.6]} 19. Bh3 {[%clk 0:01:08.6]}
19... Bc4 {[%clk 0:01:34]} 20. Rd7 {[%clk 0:01:02]} 20... b6 {[%clk 0:00:52.2]}
21. Bxb6 {[%clk 0:00:47.9]} 21... O-O {[%clk 0:00:50.8]} 22. Rc7 {[%clk
0:00:43.5]} 22... Bb5 {[%clk 0:00:47.8]} 23. Be6+ {[%clk 0:00:38.7]} 23... Kh8
{[%clk 0:00:47.3]} 24. Bd7 {[%clk 0:00:36.7]} 24... Ne5 {[%clk 0:00:40.9]} 25.
Bxb5 {[%clk 0:00:24.3]} 25... axb5 {[%clk 0:00:40.9]} 26. Rb7 {[%clk 0:00:25.2]}
26... h5 {[%clk 0:00:31.9]} 27. Bd4 {[%clk 0:00:22.6]} 27... Nc6 {[%clk
0:00:30.3]} 28. Bc5 {[%clk 0:00:21.2]} 28... Re8 {[%clk 0:00:29.3]} 29. Kf1
{[%clk 0:00:20.6]} 29... Re5 {[%clk 0:00:26]} 30. b4 {[%clk 0:00:19.9]} 30...
Kh7 {[%clk 0:00:23.3]} 31. Rxb5 {[%clk 0:00:19.9]} 31... Nxb4 {[%clk 0:00:22.4]}
32. Rxb4 {[%clk 0:00:19.8]} 32... Rxc5 {[%clk 0:00:22.4]} 33. Kg2 {[%clk
0:00:17.7]} 33... Kg6 {[%clk 0:00:22.1]} 34. Re4 {[%clk 0:00:17.4]} 34... Rc2
{[%clk 0:00:22]} 35. h3 {[%clk 0:00:17.3]} 35... Rb2 {[%clk 0:00:22]} 36. g4
{[%clk 0:00:17.2]} 36... hxg4 {[%clk 0:00:22.3]} 37. hxg4 {[%clk 0:00:18.1]}
37... Kf7 {[%clk 0:00:22.3]} 38. Kg3 {[%clk 0:00:17.9]} 38... g5 {[%clk
0:00:22.2]} 39. e3 {[%clk 0:00:17.4]} 39... Ra2 {[%clk 0:00:22]} 40. Rb4 {[%clk
0:00:17.3]} 40... Rc2 {[%clk 0:00:21.2]} 41. Rb7+ {[%clk 0:00:17.2]} 41... Kf8
{[%clk 0:00:14.7]} 42. Kf3 {[%clk 0:00:16.3]} 42... Rc4 {[%clk 0:00:14.6]} 43.
Rd7 {[%clk 0:00:15.4]} 43... Ke8 {[%clk 0:00:12.5]} 44. Rd4 {[%clk 0:00:15.1]}
44... Rc5 {[%clk 0:00:12.5]} 45. Ke4 {[%clk 0:00:15.2]} 45... Re5+ {[%clk
0:00:11.6]} 46. Kf3 {[%clk 0:00:15.5]} 46... Rc5 {[%clk 0:00:11.5]} 47. Rd6
{[%clk 0:00:15.4]} 47... Ke7 {[%clk 0:00:11.1]} 48. Ra6 {[%clk 0:00:15.5]} 48...
Kf7 {[%clk 0:00:10.9]} 49. Ke4 {[%clk 0:00:13.3]} 49... Re5+ {[%clk 0:00:09.6]}
50. Kd4 {[%clk 0:00:12.4]} 50... Rb5 {[%clk 0:00:09.5]} 51. f3 {[%clk
0:00:11.5]} 51... Rb4+ {[%clk 0:00:08.8]} 52. Kd3 {[%clk 0:00:11.3]} 52... Rb3+
{[%clk 0:00:08.8]} 53. Ke2 {[%clk 0:00:11.4]} 53... Rb2+ {[%clk 0:00:08.8]} 54.
Kd3 {[%clk 0:00:10.6]} 54... Rb3+ {[%clk 0:00:09]} 55. Kd4 {[%clk 0:00:10.6]}
55... Rb4+ {[%clk 0:00:09.1]} 56. Kc3 {[%clk 0:00:10.8]} 56... Rb1 {[%clk
0:00:08.1]} 57. Ra5 {[%clk 0:00:09.7]} 57... Rf1 {[%clk 0:00:07.5]} 58. Rf5
{[%clk 0:00:09.1]} 58... Ke6 {[%clk 0:00:07.6]} 59. Kd4 {[%clk 0:00:08.8]} 59...
Rf2 {[%clk 0:00:07.6]} 60. Ke4 {[%clk 0:00:08.5]} 60... Ra2 {[%clk 0:00:07.5]}
61. Rd5 {[%clk 0:00:08.2]} 61... Ra4+ {[%clk 0:00:07.3]} 62. Rd4 {[%clk
0:00:08.5]} 62... Ra5 {[%clk 0:00:07]} 63. Rb4 {[%clk 0:00:08.5]} 63... Ke7
{[%clk 0:00:06]} 64. Rb6 {[%clk 0:00:08.4]} 64... Kf7 {[%clk 0:00:06]} 65. f4
{[%clk 0:00:07.5]} 65... gxf4 {[%clk 0:00:05.4]} 66. exf4 {[%clk 0:00:08.4]}
66... f5+ {[%clk 0:00:05.5]} 67. gxf5 {[%clk 0:00:07.9]} 67... Ra1 {[%clk
0:00:05.4]} 68. Rb4 {[%clk 0:00:04.3]} 68... Re1+ {[%clk 0:00:05.1]} 69. Kf3
{[%clk 0:00:04.7]} 69... Kf6 {[%clk 0:00:04.9]} 70. Rb5 {[%clk 0:00:04.4]} 70...
Rh1 {[%clk 0:00:04.1]} 71. Kg4 {[%clk 0:00:04.1]} 71... Rg1+ {[%clk 0:00:04.1]}
72. Kf3 {[%clk 0:00:04.5]} 72... Rf1+ {[%clk 0:00:04.4]} 73. Ke4 {[%clk
0:00:04.8]} 73... Re1+ {[%clk 0:00:04.5]} 74. Kf3 {[%clk 0:00:05.2]} 74... Rf1+
{[%clk 0:00:04.7]} 75. Ke4 {[%clk 0:00:05.7]} 75... Re1+ {[%clk 0:00:04.8]} 76.
Kf3 {[%clk 0:00:06.2]} 1/2-1/2

[Event "*** Titled Tuesday Blitz"]
[Site "Chess.com"]
[Date "2020.04.28"]
[Round "1"]
[White "Anton_Demchenko"]
[Black "PotapovaM"]
[Result "1-0"]
[WhiteElo "2843"]
[BlackElo "2434"]
[TimeControl "180+1"]
[EndTime "10:09:19 PDT"]
[Termination "Anton_Demchenko won by resignation"]

1. d4 {[%clk 0:02:59.4]} 1... Nf6 {[%clk 0:02:57.4]} 2. Nf3 {[%clk 0:02:59.7]}
2... g6 {[%clk 0:02:56.2]} 3. Bf4 {[%clk 0:02:59.8]} 3... Bg7 {[%clk 0:02:55.7]}
4. Nbd2 {[%clk 0:03:00.4]} 4... O-O {[%clk 0:02:50.7]} 5. c3 {[%clk 0:03:00.2]}
5... d6 {[%clk 0:02:49.7]} 6. e4 {[%clk 0:03:00.1]} 6... Nbd7 {[%clk 0:02:48.6]}
7. Be2 {[%clk 0:02:59]} 7... Nh5 {[%clk 0:02:47.9]} 8. Be3 {[%clk 0:02:59.2]}
8... e5 {[%clk 0:02:46.1]} 9. O-O {[%clk 0:02:58.6]} 9... Qe7 {[%clk 0:02:40.4]}
10. Re1 {[%clk 0:02:57.3]} 10... b6 {[%clk 0:02:31.5]} 11. a4 {[%clk 0:02:51]}
11... a5 {[%clk 0:02:31.1]} 12. Qc2 {[%clk 0:02:30]} 12... Bb7 {[%clk
0:02:30.6]} 13. Rab1 {[%clk 0:02:29.9]} 13... Kh8 {[%clk 0:02:27.2]} 14. dxe5
{[%clk 0:02:11.9]} 14... dxe5 {[%clk 0:02:23]} 15. Rbd1 {[%clk 0:01:56.6]} 15...
Nc5 {[%clk 0:02:12]} 16. g3 {[%clk 0:01:40.1]} 16... Nf6 {[%clk 0:02:10.2]} 17.
Bg5 {[%clk 0:01:22.1]} 17... h6 {[%clk 0:02:02.7]} 18. Bxf6 {[%clk 0:01:22.2]}
18... Bxf6 {[%clk 0:01:59.3]} 19. Bb5 {[%clk 0:01:18.8]} 19... Bg7 {[%clk
0:01:37.2]} 20. h4 {[%clk 0:01:15.4]} 20... f5 {[%clk 0:01:00.5]} 21. exf5
{[%clk 0:01:15.5]} 21... gxf5 {[%clk 0:00:53]} 22. b4 {[%clk 0:01:09.9]} 22...
Ne4 {[%clk 0:00:40.1]} 23. Nxe4 {[%clk 0:01:09.9]} 23... Bxe4 {[%clk 0:00:37.2]}
24. Rxe4 {[%clk 0:01:09.6]} 24... fxe4 {[%clk 0:00:38.1]} 25. Qxe4 {[%clk
0:01:10]} 25... Rad8 {[%clk 0:00:20.7]} 26. Bd3 {[%clk 0:01:10.1]} 26... Bf6
{[%clk 0:00:20.9]} 27. Re1 {[%clk 0:01:07.8]} 27... Qg7 {[%clk 0:00:20.5]} 28.
bxa5 {[%clk 0:01:03.8]} 28... bxa5 {[%clk 0:00:21.3]} 29. Kg2 {[%clk 0:01:03.2]}
29... Rd7 {[%clk 0:00:21]} 30. Re2 {[%clk 0:00:56.4]} 30... Rfd8 {[%clk
0:00:21.1]} 31. Bc2 {[%clk 0:00:56.9]} 31... Re7 {[%clk 0:00:19.2]} 32. Nh2
{[%clk 0:00:56.4]} 32... Red7 {[%clk 0:00:14.7]} 33. Ng4 {[%clk 0:00:54.7]}
33... Rf7 {[%clk 0:00:12.2]} 34. Re3 {[%clk 0:00:46.1]} 34... Rg8 {[%clk
0:00:12.4]} 35. Nh2 {[%clk 0:00:35.5]} 35... Rd8 {[%clk 0:00:10.4]} 36. Rf3
{[%clk 0:00:35.4]} 36... Re8 {[%clk 0:00:08.8]} 37. Ng4 {[%clk 0:00:35.4]} 37...
Ref8 {[%clk 0:00:05.1]} 38. Rf5 {[%clk 0:00:32.1]} 38... Be7 {[%clk 0:00:04.7]}
39. Rh5 {[%clk 0:00:30.8]} 39... Rf6 {[%clk 0:00:02.6]} 40. f3 {[%clk
0:00:26.5]} 40... Qf7 {[%clk 0:00:02.7]} 41. Nxf6 {[%clk 0:00:14.6]} 41... Bxf6
{[%clk 0:00:03.6]} 42. Rf5 {[%clk 0:00:13.9]} 42... Qg7 {[%clk 0:00:03.1]} 43.
Kh3 {[%clk 0:00:13.8]} 43... Be7 {[%clk 0:00:03.4]} 44. Rxf8+ {[%clk 0:00:12.7]}
44... Bxf8 {[%clk 0:00:04.3]} 45. Qf5 {[%clk 0:00:13.1]} 45... Bd6 {[%clk
0:00:04.4]} 46. Be4 {[%clk 0:00:13.1]} 46... Be7 {[%clk 0:00:03.8]} 47. g4
{[%clk 0:00:13.1]} 47... Bd6 {[%clk 0:00:03.8]} 48. g5 {[%clk 0:00:13.5]} 48...
hxg5 {[%clk 0:00:04.7]} 49. hxg5 {[%clk 0:00:14.4]} 49... Kg8 {[%clk 0:00:05.1]}
50. Kg4 {[%clk 0:00:14.9]} 50... Qf7 {[%clk 0:00:03.9]} 51. Qf6 {[%clk
0:00:03.7]} 51... Qxf6 {[%clk 0:00:03.7]} 52. gxf6 {[%clk 0:00:04.6]} 52... Kf7
{[%clk 0:00:04.6]} 53. Kf5 {[%clk 0:00:05.5]} 53... Kf8 {[%clk 0:00:04.3]} 54.
Bd5 {[%clk 0:00:06]} 54... Bc5 {[%clk 0:00:04.3]} 55. Kxe5 {[%clk 0:00:05.4]}
55... Bd6+ {[%clk 0:00:04.4]} 56. Ke6 {[%clk 0:00:05.8]} 56... Bf4 {[%clk
0:00:04.5]} 57. c4 {[%clk 0:00:04.8]} 57... Bg3 {[%clk 0:00:04.1]} 58. Kd7
{[%clk 0:00:05]} 58... Bh2 {[%clk 0:00:04]} 59. Kc6 {[%clk 0:00:05.2]} 59... Bg3
{[%clk 0:00:04]} 60. Kb5 {[%clk 0:00:04.7]} 60... Be1 {[%clk 0:00:04.2]} 61. Kc5
{[%clk 0:00:04.8]} 61... Bf2+ {[%clk 0:00:03.9]} 62. Kc6 {[%clk 0:00:04.9]}
62... Bg3 {[%clk 0:00:04.1]} 63. Kb5 {[%clk 0:00:04.4]} 63... Be1 {[%clk
0:00:04.1]} 64. Ka6 {[%clk 0:00:05]} 64... Bd2 {[%clk 0:00:03.7]} 65. f4 {[%clk
0:00:04.9]} 65... Bc3 {[%clk 0:00:03.3]} 66. Kb7 {[%clk 0:00:05]} 66... Bxf6
{[%clk 0:00:03.5]} 67. Kxc7 {[%clk 0:00:05.5]} 67... Bc3 {[%clk 0:00:04.2]} 68.
Kd6 {[%clk 0:00:05]} 68... Bb4+ {[%clk 0:00:04.1]} 69. c5 {[%clk 0:00:04.4]}
69... Ke8 {[%clk 0:00:03.8]} 70. f5 {[%clk 0:00:04.7]} 70... Bc3 {[%clk
0:00:03.7]} 71. Kc6 {[%clk 0:00:04.6]} 71... Kd8 {[%clk 0:00:03.6]} 72. Kb7
{[%clk 0:00:04.5]} 72... Bb4 {[%clk 0:00:03]} 73. c6 {[%clk 0:00:05]} 73... Bd6
{[%clk 0:00:03.9]} 74. f6 {[%clk 0:00:05.5]} 74... Be5 {[%clk 0:00:03.4]} 75.
Be6 {[%clk 0:00:04.6]} 75... Bd6 {[%clk 0:00:03.1]} 76. f7 {[%clk 0:00:04.7]}
76... Ke7 {[%clk 0:00:02.9]} 77. Bc4 {[%clk 0:00:04.7]} 77... Kd8 {[%clk
0:00:03]} 78. c7+ {[%clk 0:00:04.4]} 78... Bxc7 {[%clk 0:00:03]} 79. f8=Q+
{[%clk 0:00:04.6]} 1-0